bitfinex/quotes_ETHUSD_20251206
["timestamp","ask_amount","ask_price","bid_price","bid_amount"]
[1765046098990,0.4965,3052.9,3052.5,6.55200654]
[1765046102298,0.4965,3053.1,3052.5,6.55200654]
[1765046102486,0.81909474,3053.0,3052.5,6.55200654]
[1765046102688,0.4518,3052.6,3052.5,3.27600327]
[1765046103406,0.4518,3052.6,3052.5,4.75179386]
[1765046106105,0.9483,3052.6,3052.5,4.75179386]
[1765046107197,0.4518,3052.6,3052.5,4.75179386]
[1765046107397,0.4965,3052.8,3052.5,8.49469713]
[1765046110588,0.81909474,3053.0,3052.5,8.49469713]
[1765046110818,0.4965,3052.9,3052.5,8.49469713]
[1765046111492,0.4518,3052.6,3052.5,3.27600327]
[1765046112021,0.4518,3052.6,3052.1,0.001]
[1765046112182,1.27089474,3052.2,3052.1,3.27736502]
[1765046112508,1.76739474,3052.2,3052.1,0.001]
[1765046114513,0.9483,3052.2,3052.1,0.001]
[1765046115893,1.12503947,3052.2,3052.1,0.001]
[1765046116424,1.94413421,3052.2,3052.1,0.001]
[1765046116785,8.21996721,3052.2,3052.1,0.001]
[1765046116987,5.32045948,3052.2,3052.1,0.001]
[1765046117402,2.04413421,3052.2,3052.1,0.001]
[1765046117802,5.32045948,3052.2,3052.1,0.001]
[1765046118201,2.04413421,3052.2,3052.1,0.001]
[1765046120303,1.27089474,3052.2,3052.1,0.001]
[1765046120500,0.81909474,3052.6,3052.1,0.4978]
[1765046120788,0.4819,3052.9,3052.3,0.4968]
[1765046121084,1.33609474,3053.0,3052.2,6.275833]
[1765046121288,0.81909474,3052.6,3052.1,0.518]
[1765046121512,0.81909474,3052.6,3052.1,1.1974833]
[1765046121707,1.30099474,3052.6,3052.2,3.27632527]
[1765046124292,0.81909474,3052.6,3052.2,3.27632527]
[1765046125022,0.81909474,3052.6,3052.2,6.55265054]
[1765046126426,0.4819,3052.5,3052.2,6.55265054]
[1765046126725,0.4819,3052.5,3052.4,3.2761106]
[1765046127097,0.4819,3052.5,3052.3,4.05119165]
[1765046127294,0.4739,3052.4,3052.3,3.27617827]
[1765046128295,0.9558,3052.4,3052.3,3.27617827]
[1765046128697,0.9558,3052.4,3052.2,3.27632527]
[1765046128920,0.9558,3052.4,3052.2,3.98339902]
[1765046129094,0.0904,3052.3,3052.2,3.98339902]
[1765046129932,0.0904,3052.3,3052.1,0.001]
[1765046130222,1.29299474,3052.2,3052.1,3.27743262]
[1765046130615,1.77489474,3052.2,3052.1,3.27743262]
[1765046130819,1.77489474,3052.2,3052.1,0.001]
[1765046131115,0.81909474,3052.2,3052.1,0.001]
[1765046131628,1.77489474,3052.2,3052.1,0.001]
[1765046132900,0.81909474,3052.4,3052.1,0.4978]
[1765046133410,0.81909474,3052.4,3052.1,0.001]
[1765046133602,0.4739,3052.2,3052.1,0.001]
[1765046134213,0.9558,3052.2,3052.1,0.001]
[1765046135628,5.35423377,3052.2,3052.1,0.001]
[1765046136998,0.9558,3052.2,3052.1,0.001]
[1765046137198,1.5728,3052.2,3052.1,0.001]
[1765046137430,2.39189474,3052.2,3052.1,0.001]
[1765046139924,1.29299474,3052.2,3052.1,0.001]
[1765046140125,2.29189474,3052.2,3052.1,0.001]
[1765046142534,1.77489474,3052.2,3052.1,0.001]
[1765046145843,5.18405225,3052.2,3052.1,0.001]
[1765046146148,5.8227635,3052.2,3052.1,0.001]
[1765046146359,2.54643823,3052.2,3052.1,0.001]
[1765046148853,5.8227635,3052.2,3052.1,0.001]
[1765046150050,2.51360599,3052.2,3052.1,0.001]
[1765046150950,2.03170599,3052.2,3052.1,0.001]
[1765046151255,2.52880599,3052.2,3052.1,0.001]
[1765046153468,5.80513126,3052.2,3052.1,0.001]
[1765046153967,5.8379635,3052.2,3052.1,0.001]
[1765046154676,12.81184925,3052.2,3052.1,0.001]
[1765046156658,6.6619213,3052.2,3052.1,0.001]
[1765046161566,12.94304518,3052.2,3052.1,0.001]
[1765046171094,19.37304518,3052.2,3052.1,0.001]
[1765046172594,19.77854918,3052.2,3052.1,0.001]
[1765046174091,11.77572656,3052.2,3052.1,0.001]
[1765046174296,11.52281938,3052.2,3052.1,0.001]
[1765046175405,10.32332527,3052.2,3052.1,0.4726]
[1765046175779,7.77259411,3052.2,3052.1,0.4726]
[1765046176006,8.59168885,3052.2,3052.1,0.4726]
[1765046177601,2.16168885,3052.2,3052.1,0.4726]
[1765046177808,1.43609474,3052.2,3052.1,0.4726]
[1765046179509,5.20272001,3052.2,3052.1,0.001]
[1765046179678,5.72645225,3052.2,3052.1,0.001]
[1765046183117,5.23555225,3052.2,3052.1,0.001]
[1765046183607,5.20272001,3052.2,3052.1,0.001]
[1765046184312,5.65572001,3052.2,3052.1,0.001]
[1765046185216,0.81909474,3052.2,3052.1,0.4891]
[1765046185512,1.33609474,3052.2,3052.1,1.1515]
[1765046186687,0.81909474,3052.2,3052.1,0.673]
[1765046186882,0.81909474,3052.2,3052.1,1.1515]
[1765046190821,1.31599474,3052.2,3052.1,0.001]
[1765046190986,0.91909474,3052.2,3052.1,0.001]
[1765046191315,0.91909474,3052.2,3052.1,0.4891]
[1765046192734,4.69232001,3052.2,3052.1,0.001]
[1765046194002,4.72515225,3052.2,3052.1,0.001]
[1765046200694,5.77674822,3052.2,3052.1,0.001]
[1765046200913,6.22974822,3052.2,3052.1,0.001]
[1765046201443,5.77674822,3052.2,3052.1,0.001]
[1765046201605,6.29374822,3052.2,3052.1,0.001]
[1765046201928,6.26091598,3052.2,3052.1,0.001]
[1765046202733,6.71391598,3052.2,3052.1,0.001]
[1765046206257,7.43951009,3052.2,3052.1,0.001]
[1765046206610,7.11770774,3052.2,3052.1,0.001]
[1765046208638,7.57070774,3052.2,3052.1,0.001]
[1765046210031,7.43951009,3052.2,3052.1,0.001]
[1765046211215,7.57069612,3052.2,3052.1,0.001]
[1765046211415,7.43951009,3052.2,3052.1,0.001]
[1765046213140,7.57069612,3052.2,3052.1,0.001]
[1765046222862,5.56920015,3052.2,3052.1,0.4893]
[1765046223056,5.56920015,3052.2,3052.1,0.9818]
[1765046223459,5.56920015,3052.2,3052.1,0.4893]
[1765046224461,12.34819352,3052.2,3052.1,0.001]
[1765046224654,12.84349352,3052.2,3052.1,0.001]
[1765046224851,15.50798571,3052.2,3052.1,0.001]
[1765046231672,15.01268571,3052.2,3052.1,0.001]
[1765046232075,15.50798571,3052.2,3052.1,0.001]
[1765046234784,15.01268571,3052.2,3052.1,0.001]
[1765046234986,15.50798571,3052.2,3052.1,0.001]
[1765046249022,15.01268571,3052.2,3052.1,0.001]
[1765046249679,15.46808571,3052.2,3052.1,0.001]
[1765046251690,14.51688571,3052.2,3052.1,0.4856]
[1765046252502,14.98568571,3052.2,3052.1,0.001]
[1765046259922,15.44108571,3052.2,3052.1,0.001]
[1765046260619,18.89208571,3052.2,3052.1,0.001]
[1765046260823,15.44108571,3052.2,3052.1,0.001]
[1765046262429,15.4426805,3052.2,3052.1,0.001]
[1765046269928,14.9872805,3052.2,3052.1,0.001]
[1765046271334,18.4382805,3052.2,3052.1,0.001]
[1765046271504,14.9872805,3052.2,3052.1,0.001]
[1765046271909,15.4561805,3052.2,3052.1,0.001]
[1765046279105,14.9872805,3052.2,3052.1,0.001]
[1765046281436,18.4382805,3052.2,3052.1,0.001]
[1765046281622,14.9872805,3052.2,3052.1,0.001]
[1765046281941,15.4561805,3052.2,3052.1,0.001]
[1765046284237,14.5184805,3052.2,3052.1,0.4838]
[1765046284444,11.85398831,3052.2,3052.1,0.4838]
[1765046286121,12.33658831,3052.2,3052.1,0.001]
[1765046286322,0.91909474,3052.0,3051.9,0.001]
[1765046286518,1.04652698,3052.0,3051.9,0.001]
[1765046287016,1.17773065,3052.0,3051.9,0.001]
[1765046287554,2.83230647,3052.0,3051.9,0.001]
[1765046287733,6.83444055,3052.0,3051.9,0.001]
[1765046287937,6.80160831,3052.0,3051.9,0.001]
[1765046291352,5.05243249,3052.0,3051.9,0.9835]
[1765046291523,0.85679778,3052.0,3051.9,0.9835]
[1765046291716,1.67589252,3052.0,3051.9,0.9835]
[1765046292330,1.77589252,3052.0,3051.9,0.9835]
[1765046292620,5.05243249,3052.0,3051.9,0.9835]
[1765046293022,6.5343502,3052.0,3051.9,0.001]
[1765046293223,6.50151796,3052.0,3051.9,0.001]
[1765046294250,6.97041796,3052.0,3051.9,0.001]
[1765046300550,6.97041796,3052.0,3051.9,0.4553]
[1765046300551,6.01891796,3052.0,3051.9,0.4553]
[1765046300951,6.01891796,3052.0,3051.9,0.9443]
[1765046302960,5.56943249,3052.0,3051.9,0.9443]
[1765046304054,6.03663249,3052.0,3051.9,0.001]
[1765046304452,6.06946473,3052.0,3051.9,0.001]
[1765046307734,5.56943249,3052.0,3051.9,0.9443]
[1765046311446,5.56943249,3052.0,3051.9,0.8943]
[1765046313467,5.56943249,3052.0,3051.9,0.4053]
[1765046313667,0.82559411,3051.9,3051.8,0.001]
[1765046313862,0.85842635,3051.9,3051.8,0.001]
[1765046314172,0.82559411,3051.9,3051.8,0.4553]
[1765046314472,0.95679778,3051.9,3051.8,0.4553]
[1765046314773,0.98963002,3051.9,3051.8,0.4553]
[1765046314968,0.98963002,3051.9,3051.8,0.4053]
[1765046315152,0.1,3051.8,3051.7,0.001]
[1765046315471,4.92144355,3051.8,3051.7,0.001]
[1765046315670,4.92144355,3051.8,3051.7,0.4553]
[1765046315869,5.41144355,3051.8,3051.7,0.4553]
[1765046317453,5.87864355,3051.8,3051.7,0.001]
[1765046317842,5.41144355,3051.8,3051.7,0.001]
[1765046318043,5.41144355,3051.8,3051.7,0.4553]
[1765046318670,13.3438256,3051.8,3051.7,0.001]
[1765046321643,13.7967256,3051.8,3051.7,0.001]
[1765046324573,13.7995012,3051.8,3051.7,0.001]
[1765046325477,20.2295012,3051.8,3051.7,0.001]
[1765046328075,20.6350052,3051.8,3051.7,0.001]
[1765046334990,24.0860052,3051.8,3051.7,0.001]
[1765046335689,24.40654311,3051.7,3051.6,0.001]
[1765046335865,25.09759922,3051.7,3051.6,0.001]
[1765046336065,25.31196122,3051.7,3051.6,0.001]
[1765046336380,24.90902313,3051.7,3051.6,0.001]
[1765046336582,28.40624013,3051.7,3051.6,0.001]
[1765046337662,31.6831022,3051.7,3051.6,0.001]
[1765046339589,29.7750172,3051.7,3051.6,0.001]
[1765046340093,29.3964462,3051.7,3051.6,0.001]
[1765046340289,35.8264462,3051.7,3051.6,0.001]
[1765046340697,36.8264462,3051.7,3051.6,0.001]
[1765046340873,0.505504,3051.0,3050.6,0.001]
[1765046341078,9.37748885,3051.0,3050.6,0.001]
[1765046341266,0.505504,3050.7,3050.6,0.001]
[1765046341466,8.04189411,3050.7,3050.6,0.001]
[1765046341776,8.48926187,3050.7,3050.6,0.001]
[1765046342090,9.43888753,3050.7,3050.6,0.001]
[1765046342292,9.57016398,3050.7,3050.6,0.001]
[1765046342793,12.84810019,3050.7,3050.6,0.001]
[1765046344001,12.36790019,3050.7,3050.6,0.001]
[1765046345205,11.96239619,3050.7,3050.6,0.001]
[1765046345396,12.47939619,3050.7,3050.6,0.001]
[1765046345593,11.98899619,3050.7,3050.6,0.4571]
[1765046345776,11.98899619,3050.7,3050.6,0.9179]
[1765046345985,11.03937053,3050.7,3050.6,0.9179]
[1765046347616,11.03937053,3050.7,3050.6,0.4571]
[1765046349707,11.03937053,3050.7,3050.6,0.9179]
[1765046350201,11.03937053,3050.7,3050.6,0.4571]
[1765046350376,11.03937053,3050.7,3050.6,0.001]
[1765046350577,12.55299924,3050.7,3050.6,0.001]
[1765046350899,13.52359924,3050.7,3050.6,0.001]
[1765046351902,19.95359924,3050.7,3050.6,0.001]
[1765046352119,20.35910324,3050.7,3050.6,0.001]
[1765046357996,23.81010324,3050.7,3050.6,0.001]
[1765046358200,45.031112,3050.7,3050.6,0.001]
[1765046358517,34.13186324,3050.7,3050.6,0.001]
[1765046358716,32.65069324,3050.7,3050.6,0.001]
[1765046359301,32.74060224,3050.7,3050.6,0.001]
[1765046359496,31.68593924,3050.7,3050.6,0.001]
[1765046359820,30.31313024,3050.7,3050.6,0.001]
[1765046360116,29.93393024,3050.7,3050.6,0.001]
[1765046360321,30.04873624,3050.7,3050.6,0.001]
[1765046361323,28.34316324,3050.7,3050.6,0.001]
[1765046361496,26.90581824,3050.7,3050.6,0.001]
[1765046361697,26.55772224,3050.7,3050.6,0.001]
[1765046362025,22.58972224,3050.7,3050.6,0.001]
[1765046362331,21.80052824,3050.7,3050.6,0.4584]
[1765046362490,0.1,3050.5,3050.4,0.001]
[1765046362814,8.44925261,3050.5,3050.4,0.001]
[1765046363013,8.44925261,3050.5,3050.4,0.1734]
[1765046363194,8.80955261,3050.5,3050.4,0.3458]
[1765046364295,12.08770373,3050.5,3050.4,0.3458]
[1765046365001,5.80013997,3050.5,3050.4,0.3458]
[1765046367424,5.80013997,3050.5,3050.4,0.001]
[1765046367628,7.88117983,3050.5,3050.4,0.001]
[1765046367847,7.84834759,3050.5,3050.4,0.001]
[1765046368148,7.35094759,3050.5,3050.4,0.001]
[1765046368350,7.35094759,3050.5,3050.4,0.1734]
[1765046368652,5.80013997,3050.5,3050.4,0.1734]
[1765046369032,5.80013997,3050.5,3050.4,0.3458]
[1765046371941,5.80013997,3050.5,3050.4,0.1734]
[1765046372561,6.33037221,3050.5,3050.4,0.001]
[1765046372853,9.02078997,3050.5,3050.4,0.001]
[1765046373050,8.53558997,3050.5,3050.4,0.001]
[1765046374445,9.42629397,3050.5,3050.4,0.001]
[1765046378169,8.44369397,3050.5,3050.4,0.001]
[1765046378664,8.44369397,3050.5,3050.4,0.3458]
[1765046378665,4.19724586,3050.5,3050.4,0.3458]
[1765046378841,1.43609474,3050.5,3050.4,0.3458]
[1765046379164,2.16168885,3050.5,3050.4,0.3458]
[1765046379337,1.43609474,3050.5,3050.4,0.3458]
[1765046379740,2.16168885,3050.5,3050.4,0.3458]
[1765046380062,1.43609474,3050.5,3050.4,0.3458]
[1765046380226,2.16168885,3050.5,3050.4,0.3458]
[1765046380435,1.43609474,3050.5,3050.4,0.3458]
[1765046383043,4.71424586,3050.5,3050.4,0.3458]
[1765046383251,4.71424586,3050.5,3050.4,0.1734]
[1765046383642,4.71424586,3050.5,3050.4,0.3458]
[1765046383971,1.43609474,3050.5,3050.4,0.3458]
[1765046384473,4.71424586,3050.5,3050.4,0.3458]
[1765046387175,1.43609474,3050.5,3050.4,0.3458]
[1765046388679,4.71424586,3050.5,3050.4,0.3458]
[1765046390681,1.43609474,3050.5,3050.4,0.3458]
[1765046393365,4.71424586,3050.5,3050.4,0.3458]
[1765046394886,4.71424586,3050.5,3050.4,0.1734]
[1765046395691,1.43609474,3050.5,3050.4,0.1734]
[1765046396586,4.71424586,3050.5,3050.4,0.001]
[1765046396759,6.90016248,3050.5,3050.4,0.001]
[1765046396961,6.86733024,3050.5,3050.4,0.001]
[1765046397881,7.86253024,3050.5,3050.4,0.001]
[1765046398181,7.99379979,3050.5,3050.4,0.001]
[1765046398389,7.86253024,3050.5,3050.4,0.001]
[1765046398587,7.36643024,3050.5,3050.4,0.001]
[1765046400389,6.86733024,3050.5,3050.4,0.001]
[1765046402200,6.86733024,3050.5,3050.4,0.1734]
[1765046402489,8.89362835,3050.5,3050.3,0.001]
[1765046402665,15.66528532,3050.4,3050.3,0.001]
[1765046402870,15.63245308,3050.4,3050.3,0.001]
[1765046403311,15.76374892,3050.4,3050.3,0.001]
[1765046404178,19.0420075,3050.4,3050.3,0.001]
[1765046409094,22.4930075,3050.4,3050.3,0.001]
[1765046409893,19.0420075,3050.4,3050.3,0.001]
[1765046414587,22.4930075,3050.4,3050.3,0.001]
[1765046415190,41.79186608,3050.4,3050.1,0.001]
[1765046415391,1.41819474,3050.2,3050.1,0.001]
[1765046415835,5.55357202,3050.2,3050.1,0.001]
[1765046415990,6.04967202,3050.2,3050.1,0.001]
[1765046419123,6.08250426,3050.2,3050.1,0.001]
[1765046419425,8.23558864,3050.2,3050.1,0.001]
[1765046419613,14.6327564,3050.2,3050.1,0.001]
[1765046419918,15.0382604,3050.2,3050.1,0.001]
[1765046420525,18.4892604,3050.2,3050.0,0.001]
[1765046420715,0.505504,3049.2,3049.1,0.001]
[1765046420911,5.52494684,3049.2,3049.1,0.001]
[1765046421217,6.04377908,3049.2,3049.1,0.001]
[1765046421758,5.65628881,3049.2,3049.1,0.001]
[1765046422319,11.94571076,3049.2,3049.1,0.001]
[1765046422506,12.63807176,3049.2,3049.1,0.001]
[1765046423902,12.14077176,3049.2,3049.1,0.1734]
[1765046424109,5.15898881,3049.2,3049.1,0.1734]
[1765046424421,0.91909474,3049.2,3049.1,0.3458]
[1765046424594,1.43609474,3049.2,3049.1,0.3458]
[1765046425494,2.16268885,3049.2,3049.1,0.3458]
[1765046428404,5.44223758,3049.2,3049.1,0.3458]
[1765046428705,5.44223758,3049.2,3049.1,0.1734]
[1765046429100,5.44223758,3049.2,3049.1,0.3458]
[1765046430524,5.44223758,3049.2,3049.1,0.1734]
[1765046434147,5.44223758,3049.2,3049.1,0.3458]
[1765046434349,1.64468885,3049.2,3049.1,0.3458]
[1765046434655,2.06268885,3049.2,3049.1,0.3458]
[1765046434818,1.33709474,3049.2,3049.1,0.70846697]
[1765046435224,0.81909474,3049.2,3049.1,0.70846697]
[1765046436027,0.81909474,3049.2,3049.1,0.3458]
[1765046439462,0.81909474,3049.2,3049.1,3.62545629]
[1765046440587,0.81909474,3049.4,3049.1,3.62545629]
[1765046440796,0.81909474,3049.2,3049.1,3.28065629]
[1765046441347,0.81909474,3049.2,3049.1,3.62545629]
[1765046442357,0.81909474,3049.2,3049.1,4.31608647]
[1765046444663,0.81909474,3049.2,3049.1,1.03643018]
[1765046445073,0.81909474,3049.2,3049.1,0.86403018]
[1765046445256,0.81909474,3049.2,3049.1,1.03643018]
[1765046448692,0.81909474,3049.2,3049.1,4.31608647]
[1765046451894,0.81909474,3049.4,3049.1,4.31608647]
[1765046452092,0.81909474,3049.4,3049.3,0.1724]
[1765046452486,0.81909474,3049.4,3049.3,0.3448]
[1765046456870,0.81909474,3049.4,3049.3,0.1724]
[1765046459075,0.81909474,3049.4,3049.3,0.3448]
[1765046461596,0.81909474,3049.4,3049.3,0.1724]
[1765046468909,0.81909474,3049.4,3049.3,0.3448]
[1765046469207,1.33609474,3049.6,3049.3,3.98675986]
[1765046469406,1.33609474,3049.6,3049.5,0.1724]
[1765046469827,1.33609474,3049.6,3049.5,0.3448]
[1765046470025,1.33609474,3049.6,3049.5,0.1724]
[1765046470230,0.1,3049.5,3049.1,3.28058645]
[1765046470406,0.81909474,3049.3,3049.1,3.93672154]
[1765046470607,0.81909474,3049.3,3049.2,0.1724]
[1765046470820,0.81909474,3049.3,3049.2,0.3448]
[1765046471636,1.33609474,3049.6,3049.2,3.62427862]
[1765046471840,1.33609474,3049.6,3049.5,0.1724]
[1765046472338,0.81909474,3049.6,3049.5,0.1724]
[1765046472837,0.81909474,3049.8,3049.5,0.3448]
[1765046473067,0.81909474,3049.6,3049.5,0.1724]
[1765046473213,0.81909474,3049.6,3049.2,3.45187862]
[1765046473544,0.81909474,3049.6,3049.5,0.1724]
[1765046474950,0.81909474,3049.6,3049.5,3.6240261]
[1765046475336,0.81909474,3049.8,3049.5,3.6240261]
[1765046475541,0.81909474,3049.8,3049.7,0.1724]
[1765046477941,0.81909474,3049.8,3049.7,0.3448]
[1765046478329,0.81909474,3049.8,3049.7,0.1724]
[1765046478525,0.81909474,3050.0,3049.7,3.98619909]
[1765046478719,0.81909474,3050.0,3049.8,0.1724]
[1765046478921,0.81909474,3050.0,3049.9,0.1724]
[1765046480252,0.517,3050.1,3049.9,0.1724]
[1765046480451,0.81909474,3050.0,3049.9,0.1724]
[1765046487378,0.81909474,3050.0,3049.6,3.27904937]
[1765046487581,0.81909474,3049.8,3049.7,0.34514494]
[1765046487751,0.81909474,3050.2,3049.9,0.1724]
[1765046487950,0.81909474,3050.2,3049.7,0.34514494]
[1765046487951,0.81909474,3050.0,3049.8,0.1724]
[1765046488151,0.81909474,3050.2,3050.1,0.1724]
[1765046488884,1.33609474,3050.3,3050.1,0.1724]
[1765046489200,1.33609474,3050.3,3050.2,0.1724]
[1765046490272,0.81909474,3050.3,3050.2,0.1724]
[1765046491763,0.81909474,3050.3,3049.9,3.27871681]
[1765046492092,0.81909474,3050.1,3049.9,3.27871681]
[1765046492388,0.81909474,3050.1,3049.9,3.45111681]
[1765046492692,0.81909474,3050.1,3050.0,0.51751168]
[1765046494858,0.81909474,3050.1,3050.0,3.7962002]
[1765046495064,0.81909474,3050.3,3050.0,3.7962002]
[1765046495584,0.81909474,3050.3,3050.2,0.1724]
[1765046496181,0.81909474,3050.5,3050.2,0.1724]
[1765046496390,0.519,3050.6,3050.4,6.46435921]
[1765046496391,0.002,3050.6,3050.4,6.46435921]
[1765046496565,0.002,3050.6,3050.5,0.1724]
[1765046498016,0.002,3050.6,3050.5,3.45055112]
[1765046501004,0.002,3050.6,3050.5,3.62295112]
[1765046501912,0.002,3050.6,3050.5,4.13995112]
[1765046502113,0.002,3050.6,3050.5,5.83879481]
[1765046502502,0.002,3050.6,3050.5,6.24429881]
[1765046502707,0.002,3050.6,3050.5,6.37549818]
[1765046504733,0.002,3050.6,3050.5,5.68609818]
[1765046504937,0.002,3050.6,3050.5,5.14939481]
[1765046506539,0.002,3050.6,3050.5,4.97699481]
[1765046506740,0.9749,3050.6,3050.5,4.97699481]
[1765046507040,0.9749,3050.6,3050.5,3.27815112]
[1765046507904,0.9749,3050.6,3050.4,3.27825858]
[1765046508108,0.002,3050.6,3050.4,3.27825858]
[1765046509521,0.002,3050.6,3050.5,0.1724]
[1765046509924,0.002,3050.6,3050.5,3.45055112]
[1765046510121,0.002,3050.6,3050.5,4.12343209]
[1765046510744,0.002,3050.6,3050.5,4.29583209]
[1765046510940,0.002,3050.6,3050.5,4.12343209]
[1765046520875,0.9471,3050.6,3050.5,3.95103209]
[1765046521661,0.4642,3050.6,3050.5,3.95103209]
[1765046524553,0.9471,3050.6,3050.0,0.34511168]
[1765046524878,0.81909474,3050.4,3050.1,3.2785511]
[1765046525250,0.4829,3050.3,3050.1,6.55713213]
[1765046526582,0.81909474,3050.4,3050.1,6.55713213]
[1765046526751,1.30199474,3050.4,3050.2,0.69022438]
[1765046527965,0.002,3050.6,3050.2,0.69022438]
[1765046528166,0.81909474,3050.5,3050.2,0.69022438]
[1765046528687,1.30199474,3050.5,3050.2,0.69022438]
[1765046530157,0.81909474,3050.5,3050.3,3.27836606]
[1765046530476,0.4829,3050.4,3050.3,3.27836606]
[1765046530645,0.9451,3050.4,3050.3,3.27836606]
[1765046534184,0.4849,3050.6,3050.3,3.27836606]
[1765046534381,0.4622,3050.4,3050.3,3.27836606]
[1765046538399,1.30199474,3050.5,3050.3,3.71918915]
[1765046538605,1.30199474,3050.5,3050.3,3.27836606]
[1765046542003,0.4819,3050.4,3050.3,3.27836606]
[1765046545209,1.30199474,3050.5,3050.3,3.27836606]
[1765046547214,0.4819,3050.4,3050.3,3.27836606]
[1765046549210,0.9614,3050.4,3050.3,3.27836606]
[1765046554409,0.4819,3050.4,3050.3,3.27836606]
[1765046554616,0.4819,3050.4,3050.3,4.00306998]
[1765046558834,0.9614,3050.4,3050.3,4.00306998]
[1765046568430,0.9614,3050.4,3050.1,6.55716206]
[1765046570960,0.4819,3050.4,3050.1,6.55716206]
[1765046571762,0.81909474,3050.5,3050.1,6.55716206]
[1765046571950,1.28589474,3050.5,3050.1,6.55716206]
[1765046575071,0.4668,3050.4,3050.1,6.55716206]
[1765046575368,1.27859474,3050.2,3050.1,3.27858103]
[1765046575876,1.74539474,3050.2,3050.1,3.27858103]
[1765046576570,1.74539474,3050.2,3050.0,3.27865045]
[1765046576740,0.4612,3050.1,3050.0,3.27865045]
[1765046577065,0.9378,3050.1,3049.8,3.2789004]
[1765046577263,0.81909474,3050.0,3049.6,6.55823714]
[1765046577468,1.75689474,3050.0,3049.7,1.3362661]
[1765046577660,0.4612,3049.9,3049.7,1.3362661]
[1765046579269,0.4612,3049.9,3049.8,3.27890353]
[1765046579675,0.9378,3049.9,3049.8,3.27890353]
[1765046585804,1.1211,3049.9,3049.6,0.81909474]
[1765046585981,0.4612,3049.8,3049.7,3.2789614]
[1765046586159,0.81909474,3050.0,3049.7,3.2789614]
[1765046586359,0.81909474,3050.0,3049.7,6.73037245]
[1765046587002,1.28029474,3050.0,3049.7,6.73037245]
[1765046587811,1.28029474,3050.0,3049.7,3.4513614]
[1765046589893,0.4766,3049.8,3049.5,6.5584522]
[1765046590073,0.4766,3049.8,3049.5,8.3164604]
[1765046590272,0.9378,3049.8,3049.5,8.3164604]
[1765046590795,0.9378,3050.3,3049.7,0.1724]
[1765046591001,0.81909474,3050.1,3049.7,0.1724]
[1765046591490,1.28029474,3050.1,3049.7,0.1724]
[1765046592099,0.517,3050.4,3049.8,6.55780706]
[1765046592301,0.81909474,3050.2,3049.8,6.55780706]
[1765046592687,1.28029474,3050.2,3049.8,6.55780706]
[1765046594085,1.28029474,3050.2,3049.7,12.84544591]
[1765046597324,1.47899474,3049.8,3049.6,0.81909474]
[1765046597524,1.47899474,3049.8,3049.1,0.001]
[1765046597525,0.4766,3049.7,3049.1,0.001]
[1765046597718,0.4766,3049.2,3049.1,3.28056916]
[1765046597912,0.4766,3049.2,3049.1,3.93670401]
[1765046598120,0.9378,3049.2,3049.1,3.93670401]
[1765046600219,0.4766,3049.2,3049.1,3.93670401]
[1765046604731,0.9271,3049.2,3049.1,3.93670401]
[1765046604925,0.9271,3049.2,3049.1,3.28056916]
[1765046610531,0.9271,3049.2,3049.1,0.001]
[1765046613568,0.81909474,3049.5,3049.1,6.46082381]
[1765046613767,0.81909474,3049.5,3049.1,6.63322381]
[1765046614070,0.81909474,3049.5,3049.4,0.1724]
[1765046614743,0.6338,3049.8,3049.5,3.2792261]
[1765046614948,1.33609474,3050.0,3049.5,6.5584522]
[1765046614949,0.81909474,3049.9,3049.5,6.5584522]
[1765046615150,0.81909474,3049.8,3049.5,3.2792261]
[1765046615467,1.26959474,3049.8,3049.5,3.2792261]
[1765046618567,1.26959474,3049.8,3049.4,3.2793079]
[1765046618770,0.4505,3049.7,3049.4,3.2793079]
[1765046619358,0.4505,3049.7,3049.4,6.55864153]
[1765046619883,0.81909474,3049.8,3049.4,6.55864153]
[1765046620087,0.4733,3049.5,3049.4,3.2793079]
[1765046620270,0.4733,3049.5,3049.3,3.27940054]
[1765046620584,0.4505,3049.5,3049.3,3.27940054]
[1765046620785,0.4505,3049.5,3049.3,0.70768453]
[1765046622089,0.4505,3049.5,3049.4,3.27933363]
[1765046623893,0.9238,3049.5,3049.3,3.98711564]
[1765046624193,1.74289474,3049.4,3049.1,3.28059234]
[1765046624390,0.4733,3049.2,3049.1,3.28059234]
[1765046624782,0.9238,3049.2,3049.1,3.28059234]
[1765046625798,0.9238,3049.2,3049.1,0.001]
[1765046631778,1.74289474,3049.2,3049.1,0.001]
[1765046632178,1.80378122,3049.4,3049.1,0.1734]
[1765046632377,0.463,3049.2,3049.1,0.001]
[1765046632905,0.9452,3049.2,3049.1,0.001]
[1765046633403,1.80381031,3049.4,3049.1,0.001]
[1765046633707,2.28601031,3049.4,3049.1,0.001]
[1765046634308,1.80381031,3049.4,3049.1,0.001]
[1765046634501,0.4822,3049.3,3049.1,0.001]
[1765046635288,1.80381031,3049.4,3049.1,0.001]
[1765046635608,2.28601031,3049.4,3049.1,0.001]
[1765046636018,0.4822,3049.3,3049.1,0.001]
[1765046636507,1.28209474,3049.2,3049.1,0.001]
[1765046636690,1.76429474,3049.2,3049.1,0.001]
[1765046648747,2.36056976,3049.2,3049.1,0.001]
[1765046649137,1.76429474,3049.2,3049.1,0.001]
[1765046651858,1.86429474,3049.2,3049.1,0.001]
[1765046656368,1.28209474,3049.2,3049.1,0.001]
[1765046656571,1.76429474,3049.2,3049.1,0.001]
[1765046660093,1.86429474,3049.2,3049.1,0.001]
[1765046660245,2.51228514,3049.2,3049.1,0.001]
[1765046661192,5.79183387,3049.2,3049.1,0.001]
[1765046661688,2.51228514,3049.2,3049.1,0.001]
[1765046663092,5.79183387,3049.2,3049.1,0.001]
[1765046665190,2.51228514,3049.2,3049.1,0.001]
[1765046665886,2.42038514,3049.2,3049.1,0.001]
[1765046666120,2.52038514,3049.2,3049.1,0.001]
[1765046666462,1.93008514,3049.2,3049.1,0.001]